fUST/lending_fUST_20260111
["ID","MTS","AMOUNT","RATE_DAILY","PERIOD"]
[401296552,1768116640312,-1020.65061109,0.00012329,2]
[401296553,1768116640322,-1020.65061109,0.00012329,2]
[401296554,1768116640331,-1020.65061109,0.00012329,2]
[401296555,1768116640340,-1020.65061109,0.00012329,2]
[401296556,1768116640349,-1020.65061109,0.00012329,2]
[401296557,1768116640359,-1020.65061109,0.00012329,2]
[401296558,1768116640368,-1020.65061109,0.00012329,2]
[401296559,1768116640377,-1020.65061109,0.00012329,2]
[401296560,1768116640386,-1020.65061109,0.00012329,2]
[401296561,1768116640395,-1020.65061109,0.00012329,2]
[401296562,1768116640404,-369.72,0.00012329,2]
[401296563,1768116640414,-1020.65061117,0.00012329,2]
[401296564,1768116640423,-3198.91872038,0.0001237,2]
[401296565,1768116640432,-500.0,0.00012392,2]
[401296566,1768116640441,-752.0,0.00012455,2]
[401296567,1768116640450,-3521.30514597,0.000125,2]
[401296568,1768116640460,-381.0,0.00012562,2]
[401296569,1768116640469,-752.0,0.00012592,2]
[401296570,1768116640479,-381.0,0.00012599,2]
[401296571,1768116640488,-369.72,0.00012603,2]
[401296572,1768116640498,-381.0,0.00012612,2]
[401296573,1768116640508,-314.11372153,0.00012616,2]
[401296574,1768116640517,-500.0,0.00012666,2]
[401296575,1768116640527,-1027.56383359,0.0001268,2]
[401296576,1768116640538,-976.92,0.000127,2]
[401296577,1768116640549,-752.0,0.00012729,2]
[401296578,1768116640559,-2647.22,0.00012752,2]
[401296579,1768116640569,-3588.20550987,0.00012779,2]
[401296580,1768116640578,-381.0,0.00012787,2]
[401296581,1768116640681,-207.5785114,0.000128,2]
[401296582,1768116640691,-381.0,0.00012819,2]
[401296583,1768116640701,-381.0,0.00012832,2]
[401296584,1768116640710,-3041.54642333,0.00012835,2]
[401296585,1768116640720,-600.0,0.00012841,2]
[401296586,1768116640729,-381.0,0.00012845,2]
[401296587,1768116640738,-752.0,0.00012866,2]
[401296588,1768116640748,-571.48659662,0.00012872,2]
[401296589,1768116640757,-369.72,0.00012877,2]
[401296590,1768116640767,-467.29281857,0.0001291,2]
[401296591,1768116640777,-500.0,0.0001294,2]
[401296592,1768116640787,-381.0,0.0001297,2]
[401296593,1768116640796,-381.0,0.00012973,2]
[401296594,1768116640806,-500.0,0.00012999,2]
[401296595,1768116640815,-500.0,0.00012999,2]
[401296596,1768116640825,-500.0,0.00012999,2]
[401296597,1768116640835,-500.0,0.00012999,2]
[401296598,1768116640845,-500.0,0.00012999,2]
[401296599,1768116640855,-154.30171575,0.00012999,2]
[401296600,1768116640864,-752.0,0.00013003,2]
[401296601,1768116640873,-381.0,0.00013016,2]
[401296602,1768116640882,-381.0,0.00013114,2]
[401296603,1768116640891,-500.0,0.00013136,2]
[401296604,1768116640900,-500.0,0.00013136,2]
[401296605,1768116640910,-500.0,0.00013136,2]
[401296606,1768116640920,-500.0,0.00013136,2]
[401296607,1768116640930,-500.0,0.00013136,2]
[401296608,1768116640939,-201.95802809,0.00013136,2]
[401296609,1768116640948,-752.0,0.0001314,2]
[401296610,1768116640957,-369.72,0.00013151,2]
[401296611,1768116640966,-976.92,0.000132,2]
[401296612,1768116640976,-500.0,0.00013214,2]
[401296613,1768116640985,-381.0,0.00013227,2]
[401296614,1768116640995,-1000.0,0.00013247,2]
[401296615,1768116641005,-244.0,0.00013247,2]
[401296616,1768116641015,-500.0,0.00013273,2]
[401296617,1768116641024,-500.0,0.00013273,2]
[401296618,1768116641034,-500.0,0.00013273,2]
[401296619,1768116641044,-500.0,0.00013273,2]
[401296620,1768116641052,-500.0,0.00013273,2]
[401296621,1768116641062,-500.0,0.00013273,2]
[401296622,1768116641071,-501.02698451,0.00013273,2]
[401296623,1768116641081,-500.0,0.00013273,2]
[401296624,1768116641090,-500.0,0.00013273,2]
[401296625,1768116641100,-500.0,0.00013273,2]
[401296626,1768116641110,-500.0,0.00013273,2]
[401296627,1768116641120,-500.0,0.00013273,2]
[401296628,1768116641130,-500.0,0.00013273,2]
[401296629,1768116641139,-500.0,0.00013273,2]
[401296630,1768116641149,-500.0,0.00013273,2]
[401296631,1768116641158,-500.0,0.00013273,2]
[401296632,1768116641168,-630.69173533,0.00013273,2]
[401296633,1768116641177,-500.0,0.00013273,2]
[401296634,1768116641187,-500.0,0.00013273,2]
[401296635,1768116641196,-500.0,0.00013273,2]
[401296636,1768116641206,-500.0,0.00013273,2]
[401296637,1768116641215,-500.0,0.00013273,2]
[401296638,1768116641227,-500.0,0.00013273,2]
[401296639,1768116641236,-500.0,0.00013273,2]
[401296640,1768116641245,-500.0,0.00013273,2]
[401296641,1768116641255,-500.24269708,0.00013273,2]
[401296642,1768116641264,-500.0,0.00013273,2]
[401296643,1768116641274,-500.0,0.00013273,2]
[401296644,1768116641283,-500.0,0.00013273,2]
[401296645,1768116641293,-500.0,0.00013273,2]
[401296646,1768116641302,-500.0,0.00013273,2]
[401296647,1768116641311,-500.0,0.00013273,2]
[401296648,1768116641321,-501.21467235,0.00013273,2]
[401296649,1768116641330,-495.22027723,0.00013273,2]
[401296650,1768116641339,-206.51680322,0.00013273,2]
[401296651,1768116641349,-500.0,0.00013273,2]
[401296652,1768116641358,-500.0,0.00013273,2]
[401296653,1768116641367,-500.0,0.00013273,2]
[401296654,1768116641377,-500.0,0.00013273,2]
[401296655,1768116641386,-500.0,0.00013273,2]
[401296656,1768116641395,-500.0,0.00013273,2]
[401296657,1768116641405,-500.0,0.00013273,2]
[401296658,1768116641415,-500.29461734,0.00013273,2]
[401296659,1768116641424,-500.0,0.00013273,2]
[401296660,1768116641434,-500.0,0.00013273,2]
[401296661,1768116641443,-500.0,0.00013273,2]
[401296662,1768116641453,-500.0,0.00013273,2]
[401296663,1768116641462,-402.502339,0.00013273,2]
[401296664,1768116641470,-500.0,0.00013273,2]
[401296665,1768116641479,-500.0,0.00013273,2]
[401296666,1768116641488,-500.0,0.00013273,2]
[401296667,1768116641497,-223.56062369,0.00013273,2]
[401296668,1768116641506,-500.0,0.00013273,2]
[401296669,1768116641515,-500.0,0.00013273,2]
[401296670,1768116641523,-500.0,0.00013273,2]
[401296671,1768116641532,-500.0,0.00013273,2]
[401296672,1768116641540,-764.0,0.00013277,2]
[401296673,1768116641549,-381.0,0.0001328,2]
[401296674,1768116641558,-381.0,0.00013297,2]
[401296675,1768116641566,-381.0,0.00013357,2]
[401296676,1768116641575,-381.0,0.00013378,2]
[401296677,1768116641584,-500.0,0.0001341,2]
[401296678,1768116641592,-300.0,0.0001341,2]
[401296679,1768116641601,-500.0,0.0001341,2]
[401296680,1768116641610,-250.0,0.0001341,2]
[401296681,1768116641619,-500.0,0.00013425,2]
[401296682,1768116641628,-176.23516734,0.00013425,2]
[401296683,1768116641636,-500.0,0.00013425,2]
[401296684,1768116641645,-500.0,0.00013425,2]
[401296685,1768116641653,-500.0,0.00013425,2]
[401296686,1768116641662,-171.65605742,0.00013425,2]
[401296687,1768116641671,-369.75,0.00013425,2]
[401296688,1768116641680,-381.0,0.00013466,2]
[401296689,1768116641688,-381.0,0.00013466,2]
[401296690,1768116641697,-381.0,0.00013484,2]
[401296691,1768116641706,-500.0,0.00013488,2]
[401296692,1768116641715,-381.0,0.0001349,2]
[401296693,1768116641724,-381.0,0.00013499,2]
[401296694,1768116641732,-151.0,0.000135,2]
[401296695,1768116641743,-500.0,0.00013547,2]
[401296696,1768116641753,-500.0,0.00013547,2]
[401296697,1768116641764,-500.0,0.00013562,2]
[401296698,1768116641772,-503.05659276,0.00013562,2]
[401296699,1768116641781,-598.52490689,0.00013562,2]
[401296700,1768116641790,-500.0,0.00013562,2]
[401296701,1768116641799,-381.0,0.00013624,2]
[401296702,1768116641808,-381.0,0.00013643,2]
[401296703,1768116641817,-300.0,0.00013673,2]
[401296704,1768116641826,-500.0,0.00013684,2]
[401296705,1768116641835,-500.0,0.00013684,2]
[401296706,1768116641844,-500.0,0.00013698,2]
[401296707,1768116641852,-500.0,0.00013698,2]
[401296708,1768116641861,-500.0,0.00013698,2]
[401296709,1768116641870,-500.0,0.00013698,2]
[401296710,1768116641879,-500.0,0.00013698,2]
[401296711,1768116641887,-500.0,0.00013698,2]
[401296712,1768116641896,-500.0,0.00013698,2]
[401296713,1768116641905,-534.57834013,0.00013698,2]
[401296714,1768116641914,-1000.0,0.00013698,2]
[401296715,1768116641923,-1000.0,0.00013698,2]
[401296716,1768116641933,-1000.0,0.00013698,2]
[401296717,1768116641942,-1000.0,0.00013698,2]
[401296718,1768116641951,-1000.0,0.00013698,2]
[401296719,1768116641959,-1000.0,0.00013698,2]
[401296720,1768116641968,-1000.0,0.00013698,2]
[401296721,1768116641977,-1016.42012615,0.00013698,2]
[401296722,1768116641986,-500.0,0.00013698,2]
[401296723,1768116641995,-500.0,0.00013698,2]
[401296724,1768116642004,-500.0,0.00013698,2]
[401296725,1768116642013,-500.0,0.00013698,2]
[401296726,1768116642023,-500.0,0.00013698,2]
[401296727,1768116642032,-500.0,0.00013698,2]
[401296728,1768116642041,-530.1272902,0.00013698,2]
[401296729,1768116642051,-500.0,0.00013698,2]
[401296730,1768116642060,-500.0,0.00013698,2]
[401296731,1768116642069,-500.0,0.00013698,2]
[401296732,1768116642078,-500.0,0.00013698,2]
[401296733,1768116642087,-500.0,0.00013698,2]
[401296734,1768116642096,-500.0,0.00013698,2]
[401296735,1768116642105,-500.0,0.00013698,2]
[401296736,1768116642115,-500.0,0.00013698,2]
[401296737,1768116642124,-239.37126777,0.00013698,2]
[401296738,1768116642134,-150.1,0.00013699,2]
[401296739,1768116642145,-1000.0,0.00013699,2]
[401296740,1768116642154,-2096.819629,0.00013699,2]
[401296741,1768116642164,-500.0,0.00013699,2]
[401296742,1768116642173,-500.0,0.00013699,2]
[401296743,1768116642182,-500.0,0.00013699,2]
[401296744,1768116642191,-500.0,0.00013699,2]
[401296745,1768116642200,-500.0,0.00013699,2]
[401296746,1768116642209,-500.0,0.00013699,2]
[401296747,1768116642220,-500.0,0.00013699,2]
[401296748,1768116642230,-500.0,0.00013699,2]
[401296749,1768116642240,-500.0,0.00013699,2]
[401296750,1768116642249,-500.0,0.00013699,2]
[401296751,1768116642258,-500.0,0.00013699,2]
[401296752,1768116642269,-500.31275461,0.00013699,2]
[401296753,1768116642279,-611.85295008,0.00013699,2]
[401296755,1768116642288,-500.0,0.00013699,2]
[401296757,1768116642298,-413.61388111,0.00013699,2]
[401296758,1768116642308,-500.0,0.00013699,2]
[401296759,1768116642318,-500.0,0.00013699,2]
[401296760,1768116642328,-500.0,0.00013699,2]
[401296761,1768116642337,-504.31837873,0.00013699,2]
[401296762,1768116642347,-500.0,0.00013699,2]
[401296763,1768116642357,-500.0,0.00013699,2]
[401296764,1768116642367,-500.0,0.00013699,2]
[401296765,1768116642376,-252.75899042,0.00013699,2]
[401296766,1768116642386,-159.05967354,0.00013699,2]
[401296767,1768116642395,-500.0,0.00013699,2]
[401296768,1768116642405,-500.0,0.00013699,2]
[401296769,1768116642414,-500.0,0.00013699,2]
[401296770,1768116642424,-500.0,0.00013699,2]
[401296771,1768116642433,-192.77974704,0.00013699,2]
[401296772,1768116642443,-500.0,0.00013699,2]
[401296773,1768116642452,-500.0,0.00013699,2]
[401296774,1768116642461,-500.0,0.00013699,2]
[401296775,1768116642471,-500.0,0.00013699,2]
[401296776,1768116642480,-500.0,0.00013699,2]
[401296777,1768116642489,-500.0,0.00013699,2]
[401296778,1768116642498,-500.0,0.00013699,2]
[401296779,1768116642508,-500.0,0.00013699,2]
[401296780,1768116642518,-500.0,0.00013699,2]
[401296781,1768116642527,-500.0,0.00013699,2]
[401296782,1768116642537,-500.0,0.00013699,2]
[401296783,1768116642546,-500.0,0.00013699,2]
[401296784,1768116642555,-500.0,0.00013699,2]
[401296785,1768116642565,-500.0,0.00013699,2]
[401296786,1768116642574,-366.95119537,0.00013699,2]
[401296787,1768116642583,-500.0,0.00013699,2]
[401296788,1768116642592,-501.32276914,0.00013699,2]
[401296789,1768116642602,-441.79967602,0.00013699,2]
[401296790,1768116642611,-268.13097792,0.00013699,2]
[401296791,1768116642620,-500.0,0.00013699,2]
[401296792,1768116642629,-500.0,0.00013699,2]
[401296793,1768116642639,-345.73139261,0.00013699,2]
[401296794,1768116642648,-500.0,0.00013699,2]
[401296795,1768116642657,-500.0,0.00013699,2]
[401296796,1768116642667,-500.0,0.00013699,2]
[401296797,1768116642677,-500.0,0.00013699,2]
[401296798,1768116642686,-500.0,0.00013699,2]
[401296799,1768116642695,-500.0,0.00013699,2]
[401296800,1768116642704,-500.0,0.00013699,2]
[401296801,1768116642714,-500.0,0.00013699,2]
[401296802,1768116642723,-500.0,0.00013699,2]
[401296803,1768116642733,-252.81793801,0.00013699,2]
[401296804,1768116642743,-500.0,0.00013699,2]
[401296805,1768116642843,-250.0,0.00013699,2]
[401296806,1768116642853,-500.93038909,0.00013699,2]
[401296807,1768116642863,-500.0,0.00013699,2]
[401296808,1768116642873,-500.0,0.00013699,2]
[401296809,1768116642883,-500.0,0.00013699,2]
[401296810,1768116642892,-500.0,0.00013699,2]
[401296811,1768116642903,-500.0,0.00013699,2]
[401296812,1768116642924,-500.0,0.00013699,2]
[401296813,1768116642936,-500.0,0.00013699,2]
[401296814,1768116642946,-295.9151759,0.00013699,2]
[401296815,1768116642956,-500.0,0.00013699,2]
[401296816,1768116642965,-500.0,0.00013699,2]
[401296817,1768116642975,-179.07075974,0.00013699,2]
[401296818,1768116642984,-500.0,0.00013699,2]
[401296819,1768116642993,-976.92,0.000137,2]
[401296820,1768116643003,-384.00760187,0.00013762,2]
[401296821,1768116643013,-381.0,0.00013805,2]
[401296822,1768116643023,-502.34729237,0.00013821,2]
[401296823,1768116643033,-1000.0,0.00013821,2]
[401296824,1768116643042,-1000.0,0.00013821,2]
[401296825,1768116643053,-1113.91769968,0.00013821,2]
[401296826,1768116643063,-506.38443798,0.00013821,2]
[401296827,1768116643072,-1000.0,0.00013821,2]
[401296828,1768116643082,-1046.83647191,0.00013821,2]
[401296829,1768116643091,-1000.0,0.00013821,2]
[401296830,1768116643101,-1000.0,0.00013821,2]
[401296831,1768116643111,-1000.0,0.00013821,2]
[401296832,1768116643121,-1000.0,0.00013821,2]
[401296833,1768116643131,-1000.0,0.00013821,2]
[401296834,1768116643141,-1000.0,0.00013821,2]
[401296835,1768116643150,-1000.0,0.00013821,2]
[401296836,1768116643160,-1000.0,0.00013821,2]
[401296837,1768116643170,-1000.0,0.00013821,2]
[401296838,1768116643180,-1000.0,0.00013821,2]
[401296839,1768116643190,-1000.0,0.00013821,2]
[401296840,1768116643199,-1000.0,0.00013821,2]
[401296841,1768116643209,-1000.0,0.00013821,2]
[401296842,1768116643220,-1000.0,0.00013821,2]
[401296843,1768116643231,-1000.0,0.00013821,2]
[401296844,1768116643240,-1000.0,0.00013821,2]
[401296845,1768116643250,-1000.0,0.00013821,2]
[401296846,1768116643259,-1000.0,0.00013821,2]
[401296847,1768116643268,-1000.0,0.00013821,2]
[401296848,1768116643278,-1000.0,0.00013821,2]
[401296849,1768116643287,-1000.0,0.00013821,2]
[401296850,1768116643296,-1000.0,0.00013821,2]
[401296851,1768116643306,-501.6206004,0.00013821,2]
[401296853,1768116643315,-1002.2053155,0.00013821,2]
[401296855,1768116643325,-178.09775665,0.00013821,2]
[401296857,1768116643334,-1000.0,0.00013821,2]
[401296858,1768116643343,-1000.0,0.00013821,2]
[401296860,1768116643352,-973.2526551,0.00013821,2]
[401296861,1768116643361,-1000.0,0.00013821,2]
[401296862,1768116643371,-877.75810228,0.00013821,2]
[401296863,1768116643380,-1000.0,0.00013821,2]
[401296864,1768116643389,-1002.56714759,0.00013821,2]
[401296865,1768116643398,-1000.0,0.00013821,2]
[401296866,1768116643407,-1000.0,0.00013821,2]
[401296867,1768116643416,-500.00000003,0.00013821,2]
[401296868,1768116643425,-500.0,0.00013821,2]
[401296870,1768116643434,-500.0,0.00013836,2]
[401296871,1768116643443,-500.0,0.00013836,2]
[401296872,1768116643452,-381.0,0.00013845,2]
[401296873,1768116643463,-500.0,0.00013958,2]
[401296874,1768116643473,-483.81749546,0.00013973,2]
[401296875,1768116643483,-263.97622948,0.00013973,2]
[401296876,1768116643494,-500.0,0.00013973,2]
[401296877,1768116643503,-264.95729538,0.00013973,2]
[401296878,1768116643512,-500.0,0.00014095,2]
[401296879,1768116643522,-500.0,0.0001411,2]
[401296880,1768116643532,-976.92,0.000142,2]
[401296881,1768116643542,-600.0,0.00014221,2]
[401296882,1768116643551,-500.0,0.00014232,2]
[401296883,1768116643563,-1000.0,0.00014247,2]
[401296884,1768116643574,-1000.0,0.00014247,2]
[401296885,1768116643584,-1000.0,0.00014247,2]
[401296886,1768116643594,-1000.0,0.00014247,2]
[401296887,1768116643603,-1000.0,0.00014247,2]
[401296888,1768116643612,-1000.0,0.00014247,2]
[401296889,1768116643624,-661.478767,0.00014247,2]
[401296890,1768116643636,-469.53593685,0.00014247,2]
[401296891,1768116643646,-1000.0,0.00014247,2]
[401296892,1768116643655,-1002.38932755,0.00014247,2]
[401296893,1768116643666,-1000.0,0.00014247,2]
[401296894,1768116643676,-1000.0,0.00014247,2]
[401296895,1768116643685,-1000.0,0.00014247,2]
[401296896,1768116643695,-313.64870907,0.00014247,2]
[401296897,1768116643707,-1000.0,0.00014247,2]
[401296898,1768116643716,-1000.0,0.00014247,2]
[401296899,1768116643725,-1000.0,0.00014247,2]
[401296900,1768116643735,-1000.0,0.00014247,2]
[401296901,1768116643745,-1000.0,0.00014247,2]
[401296902,1768116643754,-283.3787305,0.00014247,2]
[401296903,1768116643763,-1000.0,0.00014247,2]
[401296904,1768116643773,-1029.61129365,0.00014247,2]
[401296905,1768116643783,-1000.0,0.00014247,2]
[401296906,1768116643791,-1000.0,0.00014247,2]
[401296907,1768116643801,-1001.8641087,0.00014247,2]
[401296908,1768116643810,-1000.0,0.00014247,2]
[401296909,1768116643820,-1000.62599215,0.00014247,2]
[401296910,1768116643831,-1003.14554213,0.00014247,2]
[401296911,1768116643840,-1000.0,0.00014247,2]
[401296912,1768116643851,-171.67593478,0.00014247,2]
[401296913,1768116643861,-1000.0,0.00014247,2]
[401296914,1768116643871,-1000.0,0.00014247,2]
[401296915,1768116643880,-1000.0,0.00014247,2]
[401296916,1768116643889,-1000.0,0.00014247,2]
[401296917,1768116643899,-1000.0,0.00014247,2]
[401296918,1768116643908,-500.0,0.00014247,2]
[401296919,1768116643917,-1000.0,0.00014247,2]
[401296920,1768116643926,-638.41119879,0.00014247,2]
[401296921,1768116643936,-1000.0,0.00014247,2]
[401296922,1768116643945,-1000.0,0.00014247,2]
[401296923,1768116643954,-1000.0,0.00014247,2]
[401296924,1768116643963,-500.0,0.00014247,2]
[401296925,1768116643972,-1000.0,0.00014247,2]
[401296926,1768116643982,-505.42705469,0.00014247,2]
[401296927,1768116643991,-875.35271766,0.00014247,2]
[401296928,1768116644001,-1000.0,0.00014247,2]
[401296929,1768116644010,-1000.0,0.00014247,2]
[401296930,1768116644021,-443.77041137,0.00014247,2]
[401296931,1768116644031,-1000.0,0.00014247,2]
[401296932,1768116644041,-1000.0,0.00014247,2]
[401296933,1768116644051,-1000.0,0.00014247,2]
[401296934,1768116644062,-1000.0,0.00014247,2]
[401296935,1768116644074,-1000.0,0.00014247,2]
[401296936,1768116644085,-500.0,0.00014247,2]
[401296937,1768116644095,-1512.80470062,0.00014368,2]
[401296938,1768116644105,-323.03430659,0.00014368,2]
[401296939,1768116644115,-500.80134157,0.00014368,2]
[401296940,1768116644126,-1500.0,0.00014368,2]
[401296941,1768116644138,-1500.0,0.00014368,2]
[401296942,1768116644152,-1500.0,0.00014368,2]
[401296943,1768116644170,-1500.0,0.00014368,2]
[401296944,1768116644179,-1500.0,0.00014368,2]
[401296945,1768116644191,-263.96834089,0.00014368,2]
[401296946,1768116644204,-500.0,0.00014368,2]
[401296947,1768116644213,-1500.0,0.00014368,2]
[401296948,1768116644226,-1500.0,0.00014368,2]
[401296949,1768116644235,-1500.0,0.00014368,2]
[401296950,1768116644244,-1500.0,0.00014368,2]
[401296951,1768116644253,-1500.0,0.00014368,2]
[401296952,1768116644262,-168.36851892,0.00014368,2]
[401296953,1768116644272,-1500.0,0.00014368,2]
[401296954,1768116644282,-1500.0,0.00014368,2]
[401296955,1768116644291,-1500.0,0.00014368,2]
[401296956,1768116644302,-554.02767991,0.00014368,2]
[401296957,1768116644311,-1500.0,0.00014368,2]
[401296958,1768116644320,-223.48736773,0.00014368,2]
[401296959,1768116644331,-793.78310386,0.00014368,2]
[401296960,1768116644343,-500.0,0.00014368,2]
[401296961,1768116644353,-1500.0,0.00014368,2]
[401296962,1768116644363,-1500.0,0.00014368,2]
[401296963,1768116644374,-1500.0,0.00014368,2]
[401296964,1768116644384,-1500.0,0.00014368,2]
[401296965,1768116644394,-500.0,0.00014369,2]
[401296966,1768116644405,-500.0,0.00014384,2]
[401296967,1768116644418,-500.0,0.00014506,2]
[401296968,1768116644428,-5000.0,0.0001451,2]
[401296969,1768116644439,-500.0,0.00014521,2]
[401296970,1768116644450,-1000.0,0.00014572,2]
[401296971,1768116644459,-492.0,0.00014572,2]
[401296972,1768116644469,-500.0,0.00014643,2]
[401296973,1768116644479,-500.0,0.00014658,2]
[401296974,1768116644488,-976.92,0.000147,2]
[401296975,1768116644497,-100000.0,0.00014736,2]
[401296976,1768116644506,-178.0,0.00014768,2]
[401296977,1768116644515,-900.0,0.00014768,2]
[401296978,1768116644525,-500.0,0.0001478,2]
[401296979,1768116644536,-155.09397851,0.00014795,2]
[401296980,1768116644547,-1514.12213244,0.00014795,2]
[401296981,1768116644558,-488.64589349,0.00014795,2]
[401296982,1768116644567,-674.14847626,0.00014795,2]
[401296983,1768116644576,-501.33075681,0.00014795,2]
[401296984,1768116644586,-602.53259662,0.00014795,2]
[401296985,1768116644596,-1640.84533084,0.00014795,2]
[401296986,1768116644607,-1499.24471264,0.00014795,2]
[401296987,1768116644620,-1500.0,0.00014795,2]
[401296988,1768116644629,-661.95893033,0.00014795,2]
[401296990,1768116644639,-1500.0,0.00014795,2]
[401296991,1768116644648,-839.58703801,0.00014795,2]
[401296993,1768116644659,-1500.0,0.00014795,2]
[401296994,1768116644668,-1500.0,0.00014795,2]
[401296995,1768116644678,-1500.0,0.00014795,2]
[401296996,1768116644688,-1500.0,0.00014795,2]
[401296997,1768116644697,-1640.95571878,0.00014795,2]
[401296998,1768116644706,-514.14829436,0.00014795,2]
[401296999,1768116644715,-1236.28209818,0.00014795,2]
[401297000,1768116644724,-1001.3782102,0.00014795,2]
[401297001,1768116644733,-1000.0,0.00014795,2]
[401297002,1768116644742,-1500.0,0.00014795,2]
[401297003,1768116644751,-500.76011771,0.00014795,2]
[401297004,1768116644761,-1608.00999349,0.00014795,2]
[401297005,1768116644770,-1482.84709438,0.00014795,2]
[401297006,1768116644779,-1500.0,0.00014795,2]
[401297007,1768116644788,-1500.0,0.00014795,2]
[401297008,1768116644798,-788.05151213,0.00014795,2]
[401297009,1768116644807,-503.75899236,0.00014795,2]
[401297010,1768116644817,-1500.0,0.00014795,2]
[401297011,1768116644826,-1516.76085072,0.00014795,2]
[401297012,1768116644835,-1500.0,0.00014795,2]
[401297013,1768116644845,-304.84096496,0.00014795,2]
[401297014,1768116644854,-1500.0,0.00014795,2]
[401297015,1768116644863,-1003.80919542,0.00014795,2]
[401297016,1768116644873,-620.9785477,0.00014795,2]
[401297017,1768116644964,-647.12452853,0.00014872,2]
[401297018,1768116644975,-1191.81021696,0.00014916,2]
[401297019,1768116644985,-1465.81779273,0.00014916,2]
[401297020,1768116644995,-500.8125859,0.00014916,2]
[401297021,1768116645005,-497.39623951,0.00014916,2]
[401297022,1768116645015,-2000.0,0.00014916,2]
[401297023,1768116645025,-2000.0,0.00014916,2]
[401297024,1768116645035,-1510.52551,0.00014916,2]
[401297025,1768116645044,-1001.19360014,0.00014916,2]
[401297026,1768116645055,-2000.0,0.00014916,2]
[401297027,1768116645065,-365.99256781,0.00014916,2]
[401297028,1768116645076,-2000.0,0.00014916,2]
[401297029,1768116645088,-2000.0,0.00014916,2]
[401297030,1768116645099,-2000.0,0.00014916,2]
[401297031,1768116645108,-2000.0,0.00014916,2]
[401297032,1768116645119,-2000.0,0.00014916,2]
[401297033,1768116645131,-2000.0,0.00014916,2]
[401297034,1768116645141,-1000.0,0.00014916,2]
[401297035,1768116645155,-500.0,0.00014917,2]
[401297036,1768116645164,-171.0,0.00015,2]
[401297037,1768116645173,-500.0,0.00015054,2]
[401297038,1768116645182,-800.0,0.00015068,2]
[401297039,1768116645191,-152.72644825,0.00015191,2]
[401297040,1768116645200,-976.92,0.000153,2]
[401297041,1768116645209,-1200.0,0.00015316,2]
[401297042,1768116645222,-1143.18421046,0.00015342,2]
[401297043,1768116645232,-500.0,0.00015342,2]
[401297044,1768116645243,-2000.0,0.00015342,2]
[401297045,1768116645251,-2000.0,0.00015342,2]
[401297046,1768116645261,-2000.0,0.00015342,2]
[401297047,1768116645273,-2000.0,0.00015342,2]
[401297048,1768116645282,-1004.51727604,0.00015342,2]
[401297049,1768116645291,-1501.01375621,0.00015342,2]
[401297050,1768116645300,-1144.01857865,0.00015342,2]
[401297051,1768116645314,-2000.0,0.00015342,2]
[401297052,1768116645323,-2000.0,0.00015342,2]
[401297053,1768116645333,-2000.0,0.00015342,2]
[401297054,1768116645343,-1231.30854482,0.00015364,2]
[401297055,1768116645352,-2500.0,0.00015464,2]
[401297056,1768116645362,-1167.31327235,0.00015464,2]
[401297057,1768116645371,-2500.0,0.00015464,2]
[401297058,1768116645380,-2500.0,0.00015464,2]
[401297059,1768116645389,-2500.0,0.00015464,2]
[401297060,1768116645398,-2500.0,0.00015464,2]